[Event "Late-Titled-Tuesday-Blitz-February-06-2024"]
[Site "Chess.com"]
[Date "2024.02.06"]
[Round "9"]
[White "nihalsarin"]
[Black "igorkovalenko"]
[Result "1-0"]
[WhiteElo "3130"]
[BlackElo "3007"]
[TimeControl "180+1"]
[EndTime "15:45:26 PST"]
[Termination "nihalsarin won by resignation"]

1. d4 {[%clk 0:02:51.5]} 1... Nf6 {[%clk 0:02:59.9]} 2. Nf3 {[%clk 0:02:49.4]}
2... e6 {[%clk 0:03:00.1]} 3. c4 {[%clk 0:02:48]} 3... b6 {[%clk 0:03:00]} 4. a3
{[%clk 0:02:45.4]} 4... Ba6 {[%clk 0:03:00.4]} 5. Nc3 {[%clk 0:02:46.3]} 5...
Bxc4 {[%clk 0:03:00.4]} 6. Bg5 {[%clk 0:02:35.7]} 6... Be7 {[%clk 0:02:51.6]} 7.
Rc1 {[%clk 0:02:35.3]} 7... c6 {[%clk 0:02:48]} 8. e4 {[%clk 0:02:35]} 8... Bxf1
{[%clk 0:02:45]} 9. Kxf1 {[%clk 0:02:35.9]} 9... d5 {[%clk 0:02:44.8]} 10. e5
{[%clk 0:02:35.4]} 10... Nfd7 {[%clk 0:02:44.5]} 11. h4 {[%clk 0:02:35.9]} 11...
h6 {[%clk 0:02:44.5]} 12. Bxe7 {[%clk 0:02:34.4]} 12... Qxe7 {[%clk 0:02:45.4]}
13. Rh3 {[%clk 0:02:35]} 13... O-O {[%clk 0:02:34.3]} 14. Rg3 {[%clk 0:02:31.7]}
14... f5 {[%clk 0:02:31.1]} 15. Ne2 {[%clk 0:02:24.5]} 15... c5 {[%clk
0:02:26.7]} 16. Nf4 {[%clk 0:02:24.3]} 16... Qf7 {[%clk 0:02:14]} 17. b4 {[%clk
0:02:05]} 17... c4 {[%clk 0:02:11.7]} 18. b5 {[%clk 0:01:48.8]} 18... Re8 {[%clk
0:02:05.2]} 19. Ng1 {[%clk 0:01:48.5]} 19... Kh7 {[%clk 0:01:19.4]} 20. Ngh3
{[%clk 0:01:48.1]} 20... Nf8 {[%clk 0:01:16.5]} 21. Nh5 {[%clk 0:01:31.8]} 21...
Ng6 {[%clk 0:01:04.8]} 22. Nxg7 {[%clk 0:01:31.3]} 22... Rg8 {[%clk 0:01:04.3]}
23. Nxe6 {[%clk 0:01:00.2]} 23... Qxe6 {[%clk 0:00:57.9]} 24. Qh5 {[%clk
0:01:00.7]} 24... Nh8 {[%clk 0:00:20.3]} 25. Nf4 {[%clk 0:00:29.3]} 25... Qf7
{[%clk 0:00:20.5]} 26. Qxf7+ {[%clk 0:00:23.6]} 26... Nxf7 {[%clk 0:00:21.4]}
27. Rxg8 {[%clk 0:00:24.1]} 27... Kxg8 {[%clk 0:00:21.9]} 28. Nxd5 {[%clk
0:00:25]} 28... a6 {[%clk 0:00:21.8]} 29. Rxc4 {[%clk 0:00:20.9]} 29... axb5
{[%clk 0:00:18.5]} 30. Rc8+ {[%clk 0:00:20.8]} 30... Kg7 {[%clk 0:00:19.1]} 31.
Nxb6 {[%clk 0:00:17.2]} 31... Rxa3 {[%clk 0:00:17]} 32. Rxb8 {[%clk 0:00:17.9]}
32... Rd3 {[%clk 0:00:16.5]} 33. Rb7 {[%clk 0:00:14.7]} 33... Kg6 {[%clk
0:00:17]} 34. h5+ {[%clk 0:00:14.2]} 34... Kg5 {[%clk 0:00:16.7]} 35. Rxf7
{[%clk 0:00:14.2]} 35... b4 {[%clk 0:00:17.4]} 36. e6 {[%clk 0:00:12.4]} 36...
b3 {[%clk 0:00:17.3]} 37. Nc4 {[%clk 0:00:10.5]} 37... Rxd4 {[%clk 0:00:15.5]}
38. e7 {[%clk 0:00:10.2]} 38... Re4 {[%clk 0:00:15.5]} 39. Nd2 {[%clk
0:00:10.6]} 39... b2 {[%clk 0:00:14]} 40. Rg7+ {[%clk 0:00:05.4]} 40... Kf6
{[%clk 0:00:06.4]} 41. Nxe4+ {[%clk 0:00:02.8]} 41... Kxg7 {[%clk 0:00:06.5]}
42. Nc3 {[%clk 0:00:03.6]} 42... Kf7 {[%clk 0:00:06.5]} 43. Ke2 {[%clk
0:00:04.2]} 43... Kxe7 {[%clk 0:00:07.2]} 44. Kd3 {[%clk 0:00:04.8]} 44... Kf6
{[%clk 0:00:08.1]} 45. Kc2 {[%clk 0:00:04.8]} 45... Kg5 {[%clk 0:00:09]} 46.
Kxb2 {[%clk 0:00:05.4]} 46... Kxh5 {[%clk 0:00:09.9]} 47. Kc2 {[%clk 0:00:06.1]}
47... Kg4 {[%clk 0:00:10.8]} 48. Kd2 {[%clk 0:00:06.5]} 48... Kf4 {[%clk
0:00:10.5]} 49. Ke2 {[%clk 0:00:07]} 49... h5 {[%clk 0:00:11.4]} 50. Nd5+ {[%clk
0:00:07.3]} 50... Ke5 {[%clk 0:00:11]} 51. Ne3 {[%clk 0:00:08]} 51... Kf4 {[%clk
0:00:11.5]} 52. g3+ {[%clk 0:00:07.8]} 52... Ke4 {[%clk 0:00:12.2]} 53. f3+
{[%clk 0:00:08.4]} 53... Ke5 {[%clk 0:00:12.3]} 54. Ng2 {[%clk 0:00:09.2]} 54...
Kf6 {[%clk 0:00:12.7]} 55. Ke3 {[%clk 0:00:09.5]} 55... Kg5 {[%clk 0:00:12.7]}
56. Nf4 {[%clk 0:00:10.1]} 56... h4 {[%clk 0:00:12.8]} 57. gxh4+ {[%clk
0:00:10.5]} 57... Kxh4 {[%clk 0:00:13.7]} 58. Ne6 {[%clk 0:00:11.1]} 58... Kg3
{[%clk 0:00:14.1]} 59. f4 {[%clk 0:00:11.3]} 59... Kg4 {[%clk 0:00:14.7]} 60.
Kd4 {[%clk 0:00:12.2]} 1-0

[Event "Late-Titled-Tuesday-Blitz-February-06-2024"]
[Site "Chess.com"]
[Date "2024.02.06"]
[Round "9"]
[White "alphienothere"]
[Black "karinachess1"]
[Result "0-1"]
[WhiteElo "2288"]
[BlackElo "2682"]
[TimeControl "180+1"]
[EndTime "15:45:29 PST"]
[Termination "karinachess1 won by resignation"]

1. d4 {[%clk 0:03:00.9]} 1... Nf6 {[%clk 0:02:59.8]} 2. Nf3 {[%clk 0:02:52.8]}
2... e6 {[%clk 0:02:59.9]} 3. Nc3 {[%clk 0:02:46.8]} 3... d5 {[%clk 0:02:50.3]}
4. Qd3 {[%clk 0:02:43.9]} 4... b6 {[%clk 0:02:45.7]} 5. e4 {[%clk 0:02:43.4]}
5... Ba6 {[%clk 0:02:42.6]} 6. Qe3 {[%clk 0:02:40]} 6... Bxf1 {[%clk 0:02:42.4]}
7. Kxf1 {[%clk 0:02:34.9]} 7... dxe4 {[%clk 0:02:41.4]} 8. Nxe4 {[%clk
0:02:34.5]} 8... Be7 {[%clk 0:02:40]} 9. c3 {[%clk 0:02:33.8]} 9... O-O {[%clk
0:02:39]} 10. Nxf6+ {[%clk 0:02:11.9]} 10... Bxf6 {[%clk 0:02:39.1]} 11. Qe4
{[%clk 0:02:10]} 11... Nd7 {[%clk 0:02:33.7]} 12. g3 {[%clk 0:02:09.4]} 12... c5
{[%clk 0:02:31.6]} 13. Kg2 {[%clk 0:02:07.3]} 13... cxd4 {[%clk 0:02:26.4]} 14.
cxd4 {[%clk 0:02:06.7]} 14... b5 {[%clk 0:02:16.2]} 15. h4 {[%clk 0:02:06.5]}
15... Nb6 {[%clk 0:02:10]} 16. Bg5 {[%clk 0:02:05.7]} 16... h6 {[%clk
0:01:57.5]} 17. Bxf6 {[%clk 0:02:03]} 17... Qxf6 {[%clk 0:01:58.4]} 18. b3
{[%clk 0:01:56.5]} 18... Rfd8 {[%clk 0:01:55]} 19. Rac1 {[%clk 0:01:54]} 19...
Nd5 {[%clk 0:01:43.3]} 20. Qe5 {[%clk 0:01:49.3]} 20... Rac8 {[%clk 0:01:37.2]}
21. Qxf6 {[%clk 0:01:49]} 21... Nxf6 {[%clk 0:01:36.6]} 22. Ne5 {[%clk
0:01:44.9]} 22... Kf8 {[%clk 0:01:22.5]} 23. Kf3 {[%clk 0:01:38.9]} 23... a6
{[%clk 0:01:01.5]} 24. Ke3 {[%clk 0:01:34.3]} 24... Nd5+ {[%clk 0:00:58]} 25.
Kd2 {[%clk 0:01:28.6]} 25... f6 {[%clk 0:00:57.7]} 26. Rxc8 {[%clk 0:01:25.6]}
26... Rxc8 {[%clk 0:00:56.2]} 27. Nd3 {[%clk 0:01:26.1]} 27... Ke7 {[%clk
0:00:39.5]} 28. Re1 {[%clk 0:01:13]} 28... Kf7 {[%clk 0:00:34.7]} 29. f3 {[%clk
0:01:07.6]} 29... Rd8 {[%clk 0:00:31.6]} 30. g4 {[%clk 0:01:00.9]} 30... Ne7
{[%clk 0:00:30.8]} 31. Ke3 {[%clk 0:00:58.3]} 31... Nc6 {[%clk 0:00:30]} 32. Rc1
{[%clk 0:00:45.5]} 32... Rd6 {[%clk 0:00:22.3]} 33. Nc5 {[%clk 0:00:35.4]} 33...
Nxd4 {[%clk 0:00:20.5]} 34. Nb7 {[%clk 0:00:33.1]} 34... Rd5 {[%clk 0:00:20.6]}
35. Rc7+ {[%clk 0:00:30]} 35... Kg8 {[%clk 0:00:20.9]} 36. Nc5 {[%clk
0:00:21.7]} 36... e5 {[%clk 0:00:21]} 37. Ke4 {[%clk 0:00:19.3]} 37... Rd6
{[%clk 0:00:18.4]} 38. Nb7 {[%clk 0:00:14.6]} 38... Rc6 {[%clk 0:00:17.1]} 39.
Rxc6 {[%clk 0:00:14.7]} 39... Nxc6 {[%clk 0:00:18]} 40. h5 {[%clk 0:00:12]}
40... Kf7 {[%clk 0:00:17.5]} 41. a3 {[%clk 0:00:12.3]} 41... Ke7 {[%clk
0:00:15.3]} 42. Kd5 {[%clk 0:00:12.8]} 42... Nd4 {[%clk 0:00:15.4]} 43. b4
{[%clk 0:00:11.1]} 43... Nc2 {[%clk 0:00:14.5]} 44. Nc5 {[%clk 0:00:10.9]} 44...
Nxa3 {[%clk 0:00:14.1]} 45. Nxa6 {[%clk 0:00:11.6]} 45... Nc2 {[%clk 0:00:11.9]}
46. Kc5 {[%clk 0:00:11.3]} 46... Nd4 {[%clk 0:00:12.3]} 47. Nc7 {[%clk
0:00:10.9]} 47... Nxf3 {[%clk 0:00:12.4]} 48. Nxb5 {[%clk 0:00:11.5]} 48... e4
{[%clk 0:00:12.2]} 49. Nc3 {[%clk 0:00:12]} 49... e3 {[%clk 0:00:12.7]} 50. b5
{[%clk 0:00:11.8]} 50... Kd7 {[%clk 0:00:12.4]} 51. b6 {[%clk 0:00:12.2]} 51...
Kc8 {[%clk 0:00:12.3]} 52. Kc6 {[%clk 0:00:12.9]} 52... Ne5+ {[%clk 0:00:11.9]}
53. Kd5 {[%clk 0:00:13]} 53... Nxg4 {[%clk 0:00:12.1]} 54. Kc6 {[%clk
0:00:12.6]} 54... f5 {[%clk 0:00:12.3]} 55. b7+ {[%clk 0:00:12.7]} 55... Kb8
{[%clk 0:00:12.8]} 56. Nd5 {[%clk 0:00:12.5]} 56... Ne5+ {[%clk 0:00:12.7]} 57.
Kd6 {[%clk 0:00:13]} 57... Kxb7 {[%clk 0:00:12.2]} 58. Nxe3 {[%clk 0:00:11.7]}
58... f4 {[%clk 0:00:12.3]} 59. Nf1 {[%clk 0:00:11.7]} 59... Ng4 {[%clk
0:00:11.3]} 60. Ke6 {[%clk 0:00:11.6]} 60... Nf6 {[%clk 0:00:11.7]} 61. Kf7
{[%clk 0:00:11.4]} 61... Nxh5 {[%clk 0:00:11.8]} 62. Kg6 {[%clk 0:00:12.2]}
62... Ng3 {[%clk 0:00:12.3]} 63. Kxg7 {[%clk 0:00:12.5]} 63... Nxf1 {[%clk
0:00:12.3]} 0-1

[Event "Late-Titled-Tuesday-Blitz-February-06-2024"]
[Site "Chess.com"]
[Date "2024.02.06"]
[Round "9"]
[White "CarlosjPineror"]
[Black "ninguno46"]
[Result "1-0"]
[WhiteElo "2696"]
[BlackElo "2534"]
[TimeControl "180+1"]
[EndTime "15:45:30 PST"]
[Termination "CarlosjPineror won on time"]

1. e4 {[%clk 0:03:00.9]} 1... d6 {[%clk 0:02:50.9]} 2. d4 {[%clk 0:03:00.2]}
2... Nf6 {[%clk 0:02:51.4]} 3. Nc3 {[%clk 0:03:00.7]} 3... c6 {[%clk 0:02:50.1]}
4. f3 {[%clk 0:02:59.5]} 4... Qa5 {[%clk 0:02:48.7]} 5. Be3 {[%clk 0:02:59.3]}
5... e5 {[%clk 0:02:47.4]} 6. Qd2 {[%clk 0:02:57.1]} 6... h5 {[%clk 0:02:47]} 7.
h4 {[%clk 0:02:56.7]} 7... Be7 {[%clk 0:02:46.4]} 8. O-O-O {[%clk 0:02:52.4]}
8... Nbd7 {[%clk 0:02:45.3]} 9. Kb1 {[%clk 0:02:50.2]} 9... b5 {[%clk
0:02:41.7]} 10. Nh3 {[%clk 0:02:42.2]} 10... b4 {[%clk 0:02:37.5]} 11. Ne2
{[%clk 0:02:38.2]} 11... Rb8 {[%clk 0:02:31.3]} 12. Ng5 {[%clk 0:02:36.4]} 12...
Qc7 {[%clk 0:02:22]} 13. Ng3 {[%clk 0:02:24.3]} 13... g6 {[%clk 0:02:16.2]} 14.
Ne2 {[%clk 0:02:24.1]} 14... a5 {[%clk 0:02:11.1]} 15. Nc1 {[%clk 0:02:11.2]}
15... a4 {[%clk 0:02:07.7]} 16. dxe5 {[%clk 0:01:55.7]} 16... Nxe5 {[%clk
0:02:03]} 17. f4 {[%clk 0:01:48.7]} 17... Neg4 {[%clk 0:02:02.5]} 18. Bc4 {[%clk
0:01:48.5]} 18... O-O {[%clk 0:01:53.2]} 19. Rhe1 {[%clk 0:01:20.4]} 19... d5
{[%clk 0:01:52.4]} 20. exd5 {[%clk 0:01:19.3]} 20... cxd5 {[%clk 0:01:52.1]} 21.
Bxd5 {[%clk 0:01:19.8]} 21... Nxd5 {[%clk 0:01:51.2]} 22. Qxd5 {[%clk
0:01:19.2]} 22... Bf5 {[%clk 0:01:51.1]} 23. Nd3 {[%clk 0:01:13]} 23... b3
{[%clk 0:01:48.6]} 24. cxb3 {[%clk 0:01:10.1]} 24... axb3 {[%clk 0:01:47.2]} 25.
Ka1 {[%clk 0:00:32.9]} 25... Nf6 {[%clk 0:01:33.4]} 26. Qe5 {[%clk 0:00:25.7]}
26... Qb7 {[%clk 0:01:15.1]} 27. Bc5 {[%clk 0:00:21.3]} 27... Qa6 {[%clk
0:00:41.8]} 28. a3 {[%clk 0:00:17.6]} 28... Bxc5 {[%clk 0:00:23.4]} 29. Nxc5
{[%clk 0:00:17.6]} 29... Qa7 {[%clk 0:00:11.8]} 30. Qxf6 {[%clk 0:00:10.8]}
30... Qxc5 {[%clk 0:00:11.8]} 31. Qe5 {[%clk 0:00:09.7]} 31... Qa7 {[%clk
0:00:09.7]} 32. Ne4 {[%clk 0:00:09.3]} 32... Bxe4 {[%clk 0:00:08.1]} 33. Qxe4
{[%clk 0:00:10.2]} 33... Rfe8 {[%clk 0:00:06.7]} 34. Qxe8+ {[%clk 0:00:10.2]}
34... Rxe8 {[%clk 0:00:06.9]} 35. Rxe8+ {[%clk 0:00:10.6]} 35... Kg7 {[%clk
0:00:07.6]} 36. Ree1 {[%clk 0:00:08.2]} 36... Qf2 {[%clk 0:00:07]} 37. Rg1
{[%clk 0:00:08.1]} 37... Qxf4 {[%clk 0:00:06.4]} 38. g3 {[%clk 0:00:08.6]} 38...
Qc4 {[%clk 0:00:05.5]} 39. Rc1 {[%clk 0:00:08.8]} 39... Qd4 {[%clk 0:00:05.4]}
40. Rgf1 {[%clk 0:00:07.7]} 40... Qe3 {[%clk 0:00:05.2]} 41. Rc3 {[%clk
0:00:07.1]} 41... Qe2 {[%clk 0:00:04.4]} 42. Rfc1 {[%clk 0:00:07.5]} 42... Qb5
{[%clk 0:00:03.3]} 43. Rc5 {[%clk 0:00:06.6]} 43... Qd3 {[%clk 0:00:03]} 44.
R5c3 {[%clk 0:00:07.5]} 44... Qb5 {[%clk 0:00:02.9]} 45. Rc4 {[%clk 0:00:08.2]}
45... Qb7 {[%clk 0:00:02.5]} 46. Rb4 {[%clk 0:00:08.2]} 46... Qf3 {[%clk
0:00:02.5]} 47. a4 {[%clk 0:00:05.9]} 47... Qxg3 {[%clk 0:00:02.4]} 48. Rbc4
{[%clk 0:00:06.6]} 48... Qe3 {[%clk 0:00:02.5]} 49. R4c3 {[%clk 0:00:04.4]}
49... Qa7 {[%clk 0:00:03]} 50. Rc4 {[%clk 0:00:05.3]} 50... Qe3 {[%clk
0:00:02.7]} 51. R1c3 {[%clk 0:00:05.5]} 51... Qe1+ {[%clk 0:00:02.6]} 52. Rc1
{[%clk 0:00:06.2]} 52... Qa5 {[%clk 0:00:02.2]} 53. R1c3 {[%clk 0:00:06.5]}
53... Qa6 {[%clk 0:00:01.5]} 54. Kb1 {[%clk 0:00:05.6]} 1-0

[Event "Late-Titled-Tuesday-Blitz-February-06-2024"]
[Site "Chess.com"]
[Date "2024.02.06"]
[Round "9"]
[White "Goryachkina"]
[Black "VitaliyChayka"]
[Result "1-0"]
[WhiteElo "2692"]
[BlackElo "2457"]
[TimeControl "180+1"]
[EndTime "15:45:33 PST"]
[Termination "Goryachkina won on time"]

1. e4 {[%clk 0:02:59.8]} 1... d6 {[%clk 0:03:00.2]} 2. d4 {[%clk 0:02:59.4]}
2... Nf6 {[%clk 0:03:00.9]} 3. Nc3 {[%clk 0:02:59.2]} 3... e5 {[%clk 0:03:01.6]}
4. Nf3 {[%clk 0:02:59.1]} 4... Nbd7 {[%clk 0:03:01.9]} 5. Bc4 {[%clk 0:02:59]}
5... Be7 {[%clk 0:03:02.4]} 6. O-O {[%clk 0:02:59]} 6... O-O {[%clk 0:03:02.6]}
7. a4 {[%clk 0:02:58.9]} 7... a5 {[%clk 0:03:02.7]} 8. Ba2 {[%clk 0:02:56.6]}
8... c6 {[%clk 0:03:03]} 9. Re1 {[%clk 0:02:56.4]} 9... exd4 {[%clk 0:03:03.6]}
10. Nxd4 {[%clk 0:02:56.2]} 10... Nc5 {[%clk 0:03:04.5]} 11. h3 {[%clk
0:02:50.8]} 11... Be6 {[%clk 0:03:04.9]} 12. Nxe6 {[%clk 0:02:46]} 12... fxe6
{[%clk 0:03:05.8]} 13. Be3 {[%clk 0:02:33.8]} 13... d5 {[%clk 0:03:00.9]} 14.
exd5 {[%clk 0:02:27.4]} 14... exd5 {[%clk 0:03:00.1]} 15. Bd4 {[%clk 0:02:18.6]}
15... Bd6 {[%clk 0:02:59.5]} 16. Qe2 {[%clk 0:02:07.7]} 16... Qd7 {[%clk
0:02:55.4]} 17. Rad1 {[%clk 0:02:02.7]} 17... Rae8 {[%clk 0:02:53.6]} 18. Qd2
{[%clk 0:01:58.9]} 18... Nfe4 {[%clk 0:02:46.2]} 19. Nxe4 {[%clk 0:01:51.8]}
19... Nxe4 {[%clk 0:02:46]} 20. Qxa5 {[%clk 0:01:42.5]} 20... Ra8 {[%clk
0:02:13.2]} 21. Bxd5+ {[%clk 0:01:23.9]} 21... Kh8 {[%clk 0:01:53.1]} 22. Qxa8
{[%clk 0:01:23.4]} 22... Rxa8 {[%clk 0:01:52]} 23. Bxe4 {[%clk 0:01:23.2]} 23...
Qc7 {[%clk 0:01:26.8]} 24. b3 {[%clk 0:01:22.1]} 24... Rd8 {[%clk 0:01:16]} 25.
Be3 {[%clk 0:01:14.1]} 25... Be5 {[%clk 0:01:10.1]} 26. Rxd8+ {[%clk 0:01:12]}
26... Qxd8 {[%clk 0:01:11]} 27. Bd3 {[%clk 0:01:10.7]} 27... Bc3 {[%clk
0:01:08]} 28. Rd1 {[%clk 0:01:09]} 28... g6 {[%clk 0:00:47.8]} 29. Be2 {[%clk
0:01:06.6]} 29... Qe7 {[%clk 0:00:47.6]} 30. Bg4 {[%clk 0:01:04.7]} 30... h5
{[%clk 0:00:30.3]} 31. Bf3 {[%clk 0:01:01.8]} 31... Be5 {[%clk 0:00:24.3]} 32.
a5 {[%clk 0:00:52.6]} 32... Bd6 {[%clk 0:00:24.4]} 33. a6 {[%clk 0:00:43.4]}
33... bxa6 {[%clk 0:00:25.3]} 34. Bxc6 {[%clk 0:00:43.4]} 34... Kh7 {[%clk
0:00:25.3]} 35. Bf4 {[%clk 0:00:18.3]} 35... Bxf4 {[%clk 0:00:17.5]} 36. Rd7
{[%clk 0:00:17.8]} 36... Qxd7 {[%clk 0:00:17.3]} 37. Bxd7 {[%clk 0:00:18]} 37...
Kg7 {[%clk 0:00:18.1]} 38. g3 {[%clk 0:00:16.5]} 38... Bd6 {[%clk 0:00:15.1]}
39. Kg2 {[%clk 0:00:16.8]} 39... g5 {[%clk 0:00:13.8]} 40. Kf3 {[%clk
0:00:16.9]} 40... Kf6 {[%clk 0:00:13.2]} 41. Be8 {[%clk 0:00:13.7]} 41... h4
{[%clk 0:00:12.5]} 42. gxh4 {[%clk 0:00:13.9]} 42... gxh4 {[%clk 0:00:13.4]} 43.
Kg4 {[%clk 0:00:14.4]} 43... Bc5 {[%clk 0:00:13.7]} 44. f4 {[%clk 0:00:14]}
44... Bf2 {[%clk 0:00:13.3]} 45. Bd7 {[%clk 0:00:12.3]} 45... a5 {[%clk
0:00:13.1]} 46. Bb5 {[%clk 0:00:11.7]} 46... Be1 {[%clk 0:00:11.2]} 47. Bd3
{[%clk 0:00:12]} 47... Bf2 {[%clk 0:00:10.7]} 48. Kf3 {[%clk 0:00:12.3]} 48...
Bc5 {[%clk 0:00:09.6]} 49. Ke4 {[%clk 0:00:12.6]} 49... Bb4 {[%clk 0:00:08.7]}
50. f5 {[%clk 0:00:12.3]} 50... Be1 {[%clk 0:00:06.5]} 51. Kd5 {[%clk
0:00:12.6]} 51... Bc3 {[%clk 0:00:05.5]} 52. Kc4 {[%clk 0:00:12.4]} 52... Be1
{[%clk 0:00:04.8]} 53. c3 {[%clk 0:00:12.3]} 53... Ke5 {[%clk 0:00:05.1]} 54. b4
{[%clk 0:00:11.2]} 54... axb4 {[%clk 0:00:04.4]} 55. cxb4 {[%clk 0:00:11.3]}
55... Bf2 {[%clk 0:00:02.5]} 56. Kb5 {[%clk 0:00:09.8]} 56... Bd4 {[%clk
0:00:01.2]} 57. Kc6 {[%clk 0:00:09.9]} 1-0

[Event "Late-Titled-Tuesday-Blitz-February-06-2024"]
[Site "Chess.com"]
[Date "2024.02.06"]
[Round "9"]
[White "LiemLe"]
[Black "lucliasco"]
[Result "1/2-1/2"]
[WhiteElo "3027"]
[BlackElo "2882"]
[TimeControl "180+1"]
[EndTime "15:45:36 PST"]
[Termination "Game drawn by repetition"]

1. Nf3 {[%clk 0:03:00.9]} 1... d5 {[%clk 0:02:59.1]} 2. e3 {[%clk 0:03:00.7]}
2... Nf6 {[%clk 0:02:59.1]} 3. c4 {[%clk 0:03:01.2]} 3... e6 {[%clk 0:02:58]} 4.
Nc3 {[%clk 0:03:01.4]} 4... b6 {[%clk 0:02:57.5]} 5. b3 {[%clk 0:03:00.9]} 5...
Bb7 {[%clk 0:02:56.9]} 6. Bb2 {[%clk 0:03:01.5]} 6... Nbd7 {[%clk 0:02:56.8]} 7.
Rc1 {[%clk 0:02:56.9]} 7... a6 {[%clk 0:02:56.4]} 8. cxd5 {[%clk 0:02:57]} 8...
exd5 {[%clk 0:02:55]} 9. g3 {[%clk 0:02:57.4]} 9... Bd6 {[%clk 0:02:49.1]} 10.
Bg2 {[%clk 0:02:57.3]} 10... O-O {[%clk 0:02:50]} 11. O-O {[%clk 0:02:57.2]}
11... Re8 {[%clk 0:02:48.7]} 12. Re1 {[%clk 0:02:56.2]} 12... b5 {[%clk
0:02:47.6]} 13. d4 {[%clk 0:02:42.9]} 13... Qe7 {[%clk 0:02:40.1]} 14. Re2
{[%clk 0:02:39.1]} 14... Ba3 {[%clk 0:02:35.1]} 15. Bxa3 {[%clk 0:02:36.4]}
15... Qxa3 {[%clk 0:02:36]} 16. Rec2 {[%clk 0:02:33.9]} 16... c6 {[%clk
0:02:36.4]} 17. Ne1 {[%clk 0:02:30.8]} 17... a5 {[%clk 0:02:35.6]} 18. Nd3
{[%clk 0:02:30.1]} 18... Qd6 {[%clk 0:02:34.1]} 19. Nb1 {[%clk 0:02:03.8]} 19...
a4 {[%clk 0:02:28]} 20. Nd2 {[%clk 0:01:54.1]} 20... axb3 {[%clk 0:01:42.5]} 21.
axb3 {[%clk 0:01:55]} 21... h5 {[%clk 0:01:37.8]} 22. h3 {[%clk 0:01:49.6]}
22... Ra3 {[%clk 0:01:29.3]} 23. Nf3 {[%clk 0:01:43.1]} 23... Rea8 {[%clk
0:01:29.1]} 24. Nfe5 {[%clk 0:01:41.5]} 24... Ra2 {[%clk 0:01:26.4]} 25. Nxd7
{[%clk 0:01:22.8]} 25... Qxd7 {[%clk 0:01:20.6]} 26. Ne5 {[%clk 0:01:15.9]}
26... Qd6 {[%clk 0:01:18.4]} 27. Bf3 {[%clk 0:00:45.6]} 27... g6 {[%clk
0:01:15.8]} 28. Kg2 {[%clk 0:00:45.7]} 28... Kg7 {[%clk 0:01:15.7]} 29. Qd2
{[%clk 0:00:44.8]} 29... Rxc2 {[%clk 0:01:11.8]} 30. Qxc2 {[%clk 0:00:45.7]}
30... Nd7 {[%clk 0:01:10]} 31. Nd3 {[%clk 0:00:43.5]} 31... Ra3 {[%clk
0:01:09.7]} 32. Qb2 {[%clk 0:00:41.9]} 32... b4 {[%clk 0:01:06.6]} 33. Qd2
{[%clk 0:00:20.6]} 33... Rxb3 {[%clk 0:01:03.5]} 34. Bd1 {[%clk 0:00:21]} 34...
Rc3 {[%clk 0:01:03.3]} 35. Rxc3 {[%clk 0:00:21.3]} 35... bxc3 {[%clk 0:01:04.2]}
36. Qxc3 {[%clk 0:00:22.2]} 36... Ba6 {[%clk 0:01:02.3]} 37. Nf4 {[%clk
0:00:18.6]} 37... Bc4 {[%clk 0:00:59.7]} 38. Be2 {[%clk 0:00:17.8]} 38... Bxe2
{[%clk 0:00:57.7]} 39. Nxe2 {[%clk 0:00:18.7]} 39... Nf6 {[%clk 0:00:58.3]} 40.
Qc2 {[%clk 0:00:16.5]} 40... Ne4 {[%clk 0:00:58.3]} 41. Nf4 {[%clk 0:00:17]}
41... Qb4 {[%clk 0:00:55]} 42. Nd3 {[%clk 0:00:16.8]} 42... Qa3 {[%clk
0:00:51.3]} 43. Ne5 {[%clk 0:00:15.6]} 43... c5 {[%clk 0:00:49.7]} 44. dxc5
{[%clk 0:00:12.8]} 44... Nxc5 {[%clk 0:00:50.6]} 45. Nf3 {[%clk 0:00:11.3]}
45... Ne4 {[%clk 0:00:48.3]} 46. Nd4 {[%clk 0:00:10.5]} 46... Qd6 {[%clk
0:00:43.9]} 47. Qb2 {[%clk 0:00:10.5]} 47... Qf6 {[%clk 0:00:41.5]} 48. Qa2
{[%clk 0:00:08.3]} 48... h4 {[%clk 0:00:38.9]} 49. g4 {[%clk 0:00:07.8]} 49...
Nc3 {[%clk 0:00:39.6]} 50. Qc2 {[%clk 0:00:07.1]} 50... Ne4 {[%clk 0:00:39.8]}
51. Nf3 {[%clk 0:00:07.7]} 51... Ng5 {[%clk 0:00:36.4]} 52. Nd4 {[%clk
0:00:05.7]} 52... Qe7 {[%clk 0:00:33.1]} 53. Qe2 {[%clk 0:00:04.6]} 53... f6
{[%clk 0:00:32.4]} 54. Qd3 {[%clk 0:00:03.6]} 54... Nf7 {[%clk 0:00:29.4]} 55.
Nf3 {[%clk 0:00:03.5]} 55... Qe4 {[%clk 0:00:26.9]} 56. Qxe4 {[%clk 0:00:03.2]}
56... dxe4 {[%clk 0:00:27.8]} 57. Nxh4 {[%clk 0:00:04]} 57... Ne5 {[%clk
0:00:28.5]} 58. Kg3 {[%clk 0:00:04.3]} 58... Nd3 {[%clk 0:00:25.6]} 59. Ng2
{[%clk 0:00:04.3]} 59... g5 {[%clk 0:00:25.2]} 60. h4 {[%clk 0:00:04.9]} 60...
Ne5 {[%clk 0:00:23]} 61. h5 {[%clk 0:00:05]} 61... Nf3 {[%clk 0:00:19.1]} 62.
Kh3 {[%clk 0:00:03.7]} 62... Kh6 {[%clk 0:00:17.4]} 63. Kg3 {[%clk 0:00:04.2]}
63... Kg7 {[%clk 0:00:17.6]} 64. Kh3 {[%clk 0:00:04.5]} 64... Kf7 {[%clk
0:00:13.8]} 65. Kg3 {[%clk 0:00:05]} 65... Kg8 {[%clk 0:00:14.1]} 66. Kh3 {[%clk
0:00:05.4]} 66... Kf7 {[%clk 0:00:14.7]} 67. Kg3 {[%clk 0:00:06]} 67... Ke7
{[%clk 0:00:15.2]} 68. Kh3 {[%clk 0:00:06.3]} 68... Kf7 {[%clk 0:00:15.8]}
1/2-1/2